fUST/lending_fUST_20260514
["ID","MTS","AMOUNT","RATE_DAILY","PERIOD"]
[422244102,1778759432000,-300.0,8.68e-05,2]
[422244117,1778759432000,-300.0,8.68e-05,2]
[422244116,1778759432000,-300.0,8.68e-05,2]
[422244086,1778759432000,-5000.0,8.013e-05,2]
[422244114,1778759432000,-300.0,8.68e-05,2]
[422244112,1778759432000,-300.0,8.68e-05,2]
[422244100,1778759432000,-300.0,8.68e-05,2]
[422244098,1778759432000,-300.0,8.68e-05,2]
[422244096,1778759432000,-3580.5371276,8.511e-05,2]
[422244094,1778759432000,-397.5119931,8.511e-05,2]
[422244087,1778759432000,-394.15455122,8.177e-05,2]
[422244104,1778759432000,-300.0,8.68e-05,2]
[422244110,1778759432000,-300.0,8.68e-05,2]
[422244108,1778759432000,-300.0,8.68e-05,2]
[422244133,1778759432000,-360.08,9.124e-05,2]
[422244121,1778759432000,-300.0,8.68e-05,2]
[422244151,1778759432000,-631.87264066,9.436e-05,2]
[422244149,1778759432000,-42806.40024611,9.436e-05,2]
[422244145,1778759432000,-153.42516298,9.23e-05,2]
[422244147,1778759432000,-500.0,9.4e-05,2]
[422244120,1778759432000,-300.0,8.68e-05,2]
[422244141,1778759432000,-161.60434715,9.23e-05,2]
[422244137,1778759432000,-500.0,9.23e-05,2]
[422244135,1778759432000,-935.71268619,9.157e-05,2]
[422244129,1778759432000,-709.28398374,8.87e-05,2]
[422244131,1778759432000,-7526.68266567,9.124e-05,2]
[422244127,1778759432000,-1982.15546239,8.711e-05,2]
[422244125,1778759432000,-300.0,8.68e-05,2]
[422244123,1778759432000,-300.0,8.68e-05,2]
[422244139,1778759432000,-500.0,9.23e-05,2]
[422244143,1778759432000,-500.0,9.23e-05,2]
[422244174,1778759438000,-4536.76065322,9.436e-05,2]
[422244184,1778759440000,-10676.84525597,9.436e-05,2]
[422244538,1778759443000,-755.11298001,9.436e-05,2]
[422244639,1778759446000,-4744.74466193,9.342e-05,2]
[422244652,1778759446000,-9843.18078009,9.436e-05,2]
[422244650,1778759446000,-255.25533807,9.342e-05,2]
[422244651,1778759446000,-790.55765217,9.436e-05,2]
[422244813,1778760632000,-553.08353265,7.503e-05,2]
[422244812,1778760632000,-663.60974332,7.503e-05,2]
[422244814,1778760632000,-594.54488708,7.503e-05,2]
[422244832,1778760638000,-518.51071431,9.062e-05,2]
[422244831,1778760638000,-1192.5359794,8.99e-05,2]
[422244828,1778760638000,-329.83074482,7.579e-05,2]
[422244834,1778760638000,-114.3128321,9.162e-05,2]
[422244833,1778760638000,-2376.86411687,9.062e-05,2]
[422244830,1778760638000,-683.8944722,8.99e-05,2]
[422244829,1778760638000,-1481.22523184,7.656e-05,2]
[422244827,1778760638000,-386.2714602,7.541e-05,2]
[422244826,1778760638000,-3188.76183695,7.503e-05,2]
[422244879,1778760640000,-2467.45075736,9.162e-05,2]
[422244878,1778760640000,-808.03,9.162e-05,2]
[422244882,1778760640000,-1432.57165756,9.235e-05,2]
[422244881,1778760640000,-5318.56842397,9.235e-05,2]
[422244880,1778760640000,-2712.01336004,9.162e-05,2]
[422244913,1778760646000,-3893.28711254,9.235e-05,2]
[422244917,1778760647000,-4335.75408068,9.262e-05,2]
[422244915,1778760647000,-32.4180619,9.235e-05,2]
[422245083,1778761838000,-300.0,8.597e-05,2]
[422245075,1778761838000,-5000.0,7.208e-05,2]
[422245076,1778761838000,-1753.6830432,7.281e-05,2]
[422245090,1778761838000,-500.0,8.599e-05,2]
[422245077,1778761838000,-384.20973963,7.466e-05,2]
[422245081,1778761838000,-151.33171805,8.219e-05,2]
[422245089,1778761838000,-500.0,8.599e-05,2]
[422245084,1778761838000,-500.0,8.599e-05,2]
[422245078,1778761838000,-151.0,7.58e-05,2]
[422245079,1778761838000,-151.0,7.785e-05,2]
[422245088,1778761838000,-500.0,8.599e-05,2]
[422245080,1778761838000,-1200.0,8.217e-05,2]
[422245082,1778761838000,-528.4261596,8.219e-05,2]
[422245086,1778761838000,-500.0,8.599e-05,2]
[422245087,1778761838000,-500.0,8.599e-05,2]
[422245091,1778761838000,-500.0,8.599e-05,2]
[422245097,1778761838000,-500.0,8.599e-05,2]
[422245093,1778761838000,-500.0,8.599e-05,2]
[422245094,1778761838000,-500.0,8.599e-05,2]
[422245096,1778761838000,-500.0,8.599e-05,2]
[422245092,1778761838000,-500.0,8.599e-05,2]
[422245095,1778761838000,-500.0,8.599e-05,2]
[422245085,1778761838000,-278.60172127,8.599e-05,2]
[422245115,1778761839000,-364.6712784,8.599e-05,2]
[422245106,1778761839000,-500.0,8.599e-05,2]
[422245101,1778761839000,-500.0,8.599e-05,2]
[422245102,1778761839000,-500.0,8.599e-05,2]
[422245099,1778761839000,-500.0,8.599e-05,2]
[422245104,1778761839000,-500.0,8.599e-05,2]
[422245098,1778761839000,-500.0,8.599e-05,2]
[422245103,1778761839000,-202.84119617,8.599e-05,2]
[422245117,1778761839000,-500.0,8.599e-05,2]
[422245100,1778761839000,-500.0,8.599e-05,2]
[422245114,1778761839000,-500.0,8.599e-05,2]
[422245113,1778761839000,-500.0,8.599e-05,2]
[422245105,1778761839000,-500.0,8.599e-05,2]
[422245119,1778761839000,-497.33064768,8.6e-05,2]
[422245120,1778761839000,-1689.72065281,8.6e-05,2]
[422245116,1778761839000,-500.0,8.599e-05,2]
[422245118,1778761839000,-300.0,8.599e-05,2]
[422245110,1778761839000,-500.0,8.599e-05,2]
[422245121,1778761839000,-33362.5839164,8.6e-05,2]
[422245108,1778761839000,-500.0,8.599e-05,2]
[422245107,1778761839000,-214.65083475,8.599e-05,2]
[422245109,1778761839000,-500.0,8.599e-05,2]
[422245112,1778761839000,-500.0,8.599e-05,2]
[422245111,1778761839000,-500.0,8.599e-05,2]
[422245195,1778761841000,-5339.53196822,8.6e-05,2]
[422245186,1778761841000,-2936.42643806,8.6e-05,2]
[422245179,1778761841000,-1604.14,8.6e-05,2]
[422245313,1778761844000,-1999.3,8.514e-05,2]
[422245317,1778761847000,-1004.09126132,8.6e-05,2]
[422245315,1778761847000,-2466.08903906,8.514e-05,2]
[422245316,1778761847000,-534.61096094,8.514e-05,2]
[422245319,1778761847000,-27314.69064759,8.6e-05,2]
[422245320,1778761847000,-1457.10102313,8.6e-05,2]
[422245318,1778761847000,-4271.87736274,8.6e-05,2]
[422245466,1778763031000,-5000.0,6.963e-05,2]
[422245468,1778763031000,-1168.16155479,7.033e-05,2]
[422245474,1778763031000,-300.0,7.176e-05,2]
[422245476,1778763031000,-300.0,7.176e-05,2]
[422245481,1778763031000,-2709.92835439,7.177e-05,2]
[422245478,1778763031000,-300.0,7.176e-05,2]
[422245479,1778763031000,-300.0,7.176e-05,2]
[422245470,1778763031000,-4780.82975148,7.104e-05,2]
[422245472,1778763031000,-1000.0,7.175e-05,2]
[422245484,1778763031000,-382.22903235,7.214e-05,2]
[422245486,1778763031000,-151.0,7.751e-05,2]
[422245488,1778763031000,-7099.65275776,7.92e-05,2]
[422245490,1778763031000,-421.972,7.92e-05,2]
[422245492,1778763031000,-151.0,7.989e-05,2]
[422245494,1778763031000,-13625.23954623,8.02e-05,2]
[422245496,1778763031000,-14566.08526183,8.12e-05,2]
[422245482,1778763031000,-3465.32140184,7.177e-05,2]
[422245629,1778763041000,-500.0,8.687e-05,2]
[422245623,1778763041000,-500.0,8.687e-05,2]
[422245611,1778763041000,-16994.04943268,8.22e-05,2]
[422245613,1778763041000,-17524.1318944,8.32e-05,2]
[422245609,1778763041000,-153.570607,8.219e-05,2]
[422245607,1778763041000,-743.55922758,8.12e-05,2]
[422245617,1778763041000,-190.7577504,8.583e-05,2]
[422245615,1778763041000,-18678.45437595,8.42e-05,2]
[422245605,1778763041000,-1761.71116418,8.039e-05,2]
[422245593,1778763041000,-3238.28883582,8.039e-05,2]
[422245625,1778763041000,-500.0,8.687e-05,2]
[422245619,1778763041000,-246.07231497,8.687e-05,2]
[422245627,1778763041000,-500.0,8.687e-05,2]
[422245621,1778763041000,-170.30313056,8.687e-05,2]
[422245644,1778763041000,-500.0,8.687e-05,2]
[422245660,1778763041000,-544.22752634,8.8e-05,2]
[422245657,1778763041000,-31019.13530686,8.8e-05,2]
[422245653,1778763041000,-2465.94947017,8.8e-05,2]
[422245655,1778763041000,-17226.94880536,8.8e-05,2]
[422245650,1778763041000,-4429.22081324,8.689e-05,2]
[422245639,1778763041000,-500.0,8.687e-05,2]
[422245648,1778763041000,-15933.63850598,8.689e-05,2]
[422245640,1778763041000,-305.30377538,8.687e-05,2]
[422245634,1778763041000,-500.0,8.687e-05,2]
[422245633,1778763041000,-500.0,8.687e-05,2]
[422245642,1778763041000,-500.0,8.687e-05,2]
[422245646,1778763041000,-500.0,8.687e-05,2]
[422245636,1778763041000,-500.0,8.687e-05,2]
[422245631,1778763041000,-500.0,8.687e-05,2]
[422245862,1778763043000,-2287.82511158,8.8e-05,2]
[422245860,1778763043000,-2734.30346923,8.8e-05,2]
[422246237,1778763046000,-54562.38223443,8.8e-05,2]
[422246190,1778763046000,-896.75205161,8.8e-05,2]
[422246193,1778763046000,-7808.74716448,8.8e-05,2]
[422246196,1778763046000,-2452.93688462,8.8e-05,2]
[422246199,1778763046000,-14358.69197532,8.8e-05,2]
[422246251,1778763046000,-353.29566923,9.019e-05,2]
[422246241,1778763046000,-500.0,9.019e-05,2]
[422246239,1778763046000,-152.0,8.99e-05,2]
[422246249,1778763046000,-432.61309894,9.019e-05,2]
[422246247,1778763046000,-67.38690106,9.019e-05,2]
[422246243,1778763046000,-500.0,9.019e-05,2]
[422247873,1778763453000,10716.01619127,5e-05,2]
[422248048,1778764238000,-2885.29856981,7.608e-05,2]
[422248047,1778764238000,-256.35143019,7.532e-05,2]
[422248302,1778764240000,-2114.70143019,7.608e-05,2]
[422248304,1778764240000,-292.25856981,7.724e-05,2]
[422248320,1778764240000,-1200.6588813,8e-05,2]
[422248322,1778764240000,-1010.18875396,8e-05,2]
[422248318,1778764240000,-88.06830901,7.724e-05,2]
[422248656,1778764243000,-2416.4079311,8e-05,2]
[422248649,1778764243000,-6770.58491379,8e-05,2]
[422249009,1778764246000,-4602.33260778,8e-05,2]
[422249050,1778764247000,-13963.57065696,8e-05,2]
[422249054,1778764247000,-178.2644467,8.558e-05,2]
[422249052,1778764247000,-337.578,8e-05,2]
[422249056,1778764247000,-500.0,9.187e-05,2]
[422249062,1778764247000,-500.0,9.249e-05,2]
[422249058,1778764247000,-3107.0,9.2e-05,2]
[422249060,1778764247000,-152.0,9.247e-05,2]
[422249064,1778764247000,-500.0,9.249e-05,2]
[422249068,1778764247000,-28810.71391234,9.25e-05,2]
[422249066,1778764247000,-427.1349449,9.249e-05,2]
[422249803,1778764307000,179.647246,3.946e-05,2]
[422249807,1778764459000,-279.61322974,5.157e-05,2]
[422249813,1778764668000,168.63329388,5e-05,2]
[422249819,1778764876000,-151.68475,5.08e-05,2]
[422249822,1778765029000,5000.0,5e-05,2]
[422249823,1778765033000,18630.0,9e-05,10]
[422249841,1778765244000,5000.0,5e-05,2]
[422249914,1778765435000,-5000.0,5.055e-05,2]
[422249915,1778765436000,-393.86723271,5.08e-05,2]
[422249916,1778765436000,-179.647246,5.209e-05,2]
[422249917,1778765436000,-538.11314199,5.498e-05,2]
[422251677,1778765453000,-300.0,5.609e-05,2]
[422251676,1778765453000,-300.0,5.609e-05,2]
[422251678,1778765453000,-300.0,5.609e-05,2]
[422251679,1778765453000,-300.0,5.609e-05,2]
[422251684,1778765453000,-300.0,5.609e-05,2]
[422251673,1778765453000,-12145.83698624,5.5e-05,2]
[422251674,1778765453000,-15616.68267138,5.521e-05,2]
[422251685,1778765453000,-300.0,5.609e-05,2]
[422251672,1778765453000,-15144.79623268,5.5e-05,2]
[422251666,1778765453000,-300.0,5.499e-05,2]
[422251667,1778765453000,-300.0,5.499e-05,2]
[422251669,1778765453000,-300.0,5.499e-05,2]
[422251670,1778765453000,-208.20721964,5.5e-05,2]
[422251671,1778765453000,-6128.46584891,5.5e-05,2]
[422251682,1778765453000,-300.0,5.609e-05,2]
[422251664,1778765453000,-2459.17592235,5.443e-05,2]
[422251665,1778765453000,-661.88685801,5.498e-05,2]
[422251657,1778765453000,-891.17179098,5.443e-05,2]
[422251668,1778765453000,-300.0,5.499e-05,2]
[422251675,1778765453000,-300.0,5.609e-05,2]
[422251681,1778765453000,-300.0,5.609e-05,2]
[422251696,1778765453000,-4791.17851521,6.794e-05,2]
[422251704,1778765453000,-4165.21162246,8.502e-05,2]
[422251703,1778765453000,-4544.3493246,8.502e-05,2]
[422251702,1778765453000,-244.0,8.212e-05,2]
[422251701,1778765453000,-1000.0,8.212e-05,2]
[422251700,1778765453000,-179.647246,7.736e-05,2]
[422251699,1778765453000,-779.36951784,7.466e-05,2]
[422251697,1778765453000,-464.76333459,7.08e-05,2]
[422251698,1778765453000,-220.63048216,7.466e-05,2]
[422251680,1778765453000,-300.0,5.609e-05,2]
[422251687,1778765453000,-300.0,5.609e-05,2]
[422251694,1778765453000,-864.0,6.787e-05,2]
[422251693,1778765453000,-179.647246,6.473e-05,2]
[422251695,1778765453000,-11853.09734074,6.794e-05,2]
[422251692,1778765453000,-720.0,6.17e-05,2]
[422251691,1778765453000,-600.0,5.609e-05,2]
[422251689,1778765453000,-300.0,5.609e-05,2]
[422251688,1778765453000,-300.0,5.609e-05,2]
[422251683,1778765453000,-300.0,5.609e-05,2]
[422251690,1778765453000,-300.0,5.609e-05,2]
[422252031,1778766632000,-300.0,6.218e-05,2]
[422252045,1778766632000,-300.0,6.218e-05,2]
[422252042,1778766632000,-300.0,6.218e-05,2]
[422252021,1778766632000,-559.62709693,5.976e-05,2]
[422252029,1778766632000,-7558.301514,6.097e-05,2]
[422252027,1778766632000,-4084.03722137,6.036e-05,2]
[422252025,1778766632000,-3109.0,5.976e-05,2]
[422252047,1778766632000,-300.0,6.218e-05,2]
[422252023,1778766632000,-1331.37290307,5.976e-05,2]
[422252033,1778766632000,-300.0,6.218e-05,2]
[422252043,1778766632000,-300.0,6.218e-05,2]
[422252040,1778766632000,-300.0,6.218e-05,2]
[422252061,1778766632000,-115.97512451,6.218e-05,2]
[422252059,1778766632000,-300.0,6.218e-05,2]
[422252057,1778766632000,-84.02487549,6.218e-05,2]
[422252053,1778766632000,-300.0,6.218e-05,2]
[422252049,1778766632000,-300.0,6.218e-05,2]
[422252036,1778766632000,-164.8987882,6.218e-05,2]
[422252034,1778766632000,-300.0,6.218e-05,2]
[422252050,1778766632000,-300.0,6.218e-05,2]
[422252038,1778766632000,-135.1012118,6.218e-05,2]
[422252055,1778766632000,-215.97512451,6.218e-05,2]
[422252309,1778766638000,-184.02487549,6.218e-05,2]
[422252311,1778766638000,-600.0,6.341e-05,2]
[422252315,1778766638000,-300.0,6.803e-05,2]
[422252316,1778766638000,-300.0,6.803e-05,2]
[422252313,1778766638000,-1200.0,6.802e-05,2]
[422252322,1778766638000,-720.0,6.975e-05,2]
[422252326,1778766638000,-16099.80333896,7.155e-05,2]
[422252318,1778766638000,-300.0,6.803e-05,2]
[422252320,1778766638000,-300.0,6.803e-05,2]
[422252330,1778766638000,-20348.59991387,7.155e-05,2]
[422252324,1778766638000,-382.57042441,6.977e-05,2]
[422252328,1778766638000,-4663.58074933,7.155e-05,2]
[422252800,1778766642000,-3361.34005183,7.155e-05,2]
[422252977,1778766644000,-2907.59361649,7.155e-05,2]
[422253364,1778766647000,-420.0,7.483e-05,2]
[422253408,1778766647000,-939.0,8.956e-05,2]
[422253397,1778766647000,-153.46788304,8.956e-05,2]
[422253393,1778766647000,-154.25126233,8.956e-05,2]
[422253389,1778766647000,-636.44731816,8.808e-05,2]
[422253391,1778766647000,-151.5,8.956e-05,2]
[422253395,1778766647000,-151.5,8.956e-05,2]
[422253378,1778766647000,-2160.0,8.23e-05,2]
[422253380,1778766647000,-300.0,8.232e-05,2]
[422253411,1778766647000,-939.0,8.956e-05,2]
[422253362,1778766647000,-300.0,7.483e-05,2]
[422253376,1778766647000,-152.0,8.004e-05,2]
[422253384,1778766647000,-9434.19453216,8.502e-05,2]
[422253382,1778766647000,-1000.0,8.44e-05,2]
[422253374,1778766647000,-456.3999724,7.76e-05,2]
[422253372,1778766647000,-244.1891963,7.76e-05,2]
[422253368,1778766647000,-864.0,7.673e-05,2]
[422253359,1778766647000,-1680.0,7.482e-05,2]
[422253366,1778766647000,-420.0,7.483e-05,2]
[422253370,1778766647000,-240.98131731,7.711e-05,2]
[422253357,1778766647000,-4399.75826792,7.155e-05,2]
[422253386,1778766647000,-325.7530474,8.697e-05,2]
[422253409,1778766647000,-939.0,8.956e-05,2]
[422253423,1778766647000,-939.0,8.956e-05,2]
[422253418,1778766647000,-939.0,8.956e-05,2]
[422253450,1778766647000,-421.06732447,8.956e-05,2]
[422253448,1778766647000,-939.0,8.956e-05,2]
[422253446,1778766647000,-939.0,8.956e-05,2]
[422253445,1778766647000,-939.0,8.956e-05,2]
[422253441,1778766647000,-939.0,8.956e-05,2]
[422253439,1778766647000,-209.02675248,8.956e-05,2]
[422253435,1778766647000,-939.0,8.956e-05,2]
[422253437,1778766647000,-729.97324752,8.956e-05,2]
[422253414,1778766647000,-939.0,8.956e-05,2]
[422253443,1778766647000,-939.0,8.956e-05,2]
[422253431,1778766647000,-939.0,8.956e-05,2]
[422253429,1778766647000,-939.0,8.956e-05,2]
[422253427,1778766647000,-939.0,8.956e-05,2]
[422253425,1778766647000,-939.0,8.956e-05,2]
[422253406,1778766647000,-471.67007282,8.956e-05,2]
[422253421,1778766647000,-939.0,8.956e-05,2]
[422253400,1778766647000,-939.0,8.956e-05,2]
[422253402,1778766647000,-467.32992718,8.956e-05,2]
[422253398,1778766647000,-223.57396683,8.956e-05,2]
[422253420,1778766647000,-939.0,8.956e-05,2]
[422253416,1778766647000,-939.0,8.956e-05,2]
[422253433,1778766647000,-939.0,8.956e-05,2]
[422254095,1778766901000,179.6472494,4.282e-05,2]
[422254096,1778767254000,-5000.0,6.873e-05,2]
[422254097,1778767271000,-374.91901593,7.363e-05,2]
[422254098,1778767289000,-458.0127991,8.697e-05,2]
[422254099,1778767307000,-325.7348266,8.697e-05,2]
[422254100,1778767325000,-152.0,8.923e-05,2]
[422254101,1778767342000,-367.42063561,8.955e-05,2]
[422254102,1778767360000,-7079.46243061,8.988e-05,2]
[422254103,1778767377000,-173.845201,8.697e-05,2]
[422254104,1778767634000,245078.61041703,1.45e-05,2]
[422254140,1778767832000,-442.41179095,7.683e-05,2]
[422254142,1778767832000,-152.0,7.814e-05,2]
[422254141,1778767832000,-152.0,7.761e-05,2]
[422254143,1778767832000,-3800.0,8.6e-05,2]
[422254145,1778767832000,-456.4711948,8.697e-05,2]
[422254144,1778767832000,-360.0722229,8.605e-05,2]
[422254146,1778767832000,-456.4711948,8.704e-05,2]
[422254148,1778767832000,-500.0,8.728e-05,2]
[422254147,1778767832000,-151.9244844,8.704e-05,2]
[422254150,1778767832000,-800.0,8.899e-05,2]
[422254149,1778767832000,-800.0,8.851e-05,2]
[422254151,1778767832000,-800.0,8.935e-05,2]
[422254152,1778767832000,-516.26452395,9e-05,3]
[422254154,1778767832000,-392.69097299,9.03e-05,2]
[422254153,1778767832000,-407.30902701,9.03e-05,2]
[422254156,1778767832000,-1349.37230475,9.112e-05,2]
[422254155,1778767832000,-793.0,9.1e-05,2]
[422254160,1778767832000,-132.76402764,9.158e-05,2]
[422254158,1778767832000,-647.0,9.112e-05,2]
[422254157,1778767832000,-62.62769525,9.112e-05,2]
[422254159,1778767832000,-269.35,9.158e-05,2]
[422254581,1778767842000,-269.35,9.16e-05,2]
[422254578,1778767842000,-152.0,8.637e-05,2]
[422254580,1778767842000,-136.58597236,9.158e-05,2]
[422254582,1778767842000,-269.35,9.16e-05,2]
[422254583,1778767842000,-167.32272096,9.16e-05,2]
[422254601,1778767844000,-102.02727904,9.16e-05,2]
[422254603,1778767844000,-245.52417285,9.162e-05,2]
[422254604,1778767844000,-23.82582715,9.162e-05,2]
[422254605,1778767844000,-269.35,9.162e-05,2]
[422254608,1778767844000,-300.0,9.212e-05,2]
[422254602,1778767844000,-269.39,9.162e-05,2]
[422254607,1778767844000,-300.0,9.212e-05,2]
[422254606,1778767844000,-300.0,9.212e-05,2]
[422254610,1778767844000,-300.0,9.212e-05,2]
[422254612,1778767844000,-181.82417282,9.212e-05,2]
[422254611,1778767844000,-300.0,9.212e-05,2]
[422254609,1778767844000,-300.0,9.212e-05,2]
[422254622,1778767847000,-300.0,9.212e-05,2]
[422254621,1778767847000,-300.0,9.212e-05,2]
[422254618,1778767847000,-300.0,9.212e-05,2]
[422254619,1778767847000,-141.03860515,9.212e-05,2]
[422254625,1778767847000,-300.0,9.212e-05,2]
[422254623,1778767847000,-300.0,9.212e-05,2]
[422254624,1778767847000,-300.0,9.212e-05,2]
[422254617,1778767847000,-118.17582718,9.212e-05,2]
[422254626,1778767847000,-300.0,9.212e-05,2]
[422254620,1778767847000,-158.96139485,9.212e-05,2]
[422254627,1778767847000,-2202.0,9.245e-05,2]
[422254633,1778767847000,-800.0,9.545e-05,2]
[422254628,1778767847000,-443.0,9.274e-05,2]
[422254636,1778767847000,-241.77349853,9.584e-05,2]
[422254637,1778767847000,-558.22650147,9.584e-05,2]
[422254639,1778767847000,-301.07204664,9.6e-05,2]
[422254635,1778767847000,-800.0,9.558e-05,2]
[422254631,1778767847000,-325.8583785,9.528e-05,2]
[422254638,1778767847000,-800.0,9.598e-05,2]
[422254634,1778767847000,-800.0,9.55e-05,2]
[422254630,1778767847000,-456.4711948,9.528e-05,2]
[422254629,1778767847000,-185.0,9.274e-05,2]
[422254632,1778767847000,-484.2413663,9.528e-05,2]
[422254726,1778769031000,-2875.0,7.223e-05,2]
[422254832,1778769041000,-300.0,8.227e-05,2]
[422254845,1778769041000,-300.0,8.227e-05,2]
[422254843,1778769041000,-300.0,8.227e-05,2]
[422254835,1778769041000,-300.0,8.227e-05,2]
[422254837,1778769041000,-300.0,8.227e-05,2]
[422254847,1778769041000,-600.0,8.391e-05,2]
[422254866,1778769041000,-720.0,9.23e-05,2]
[422254851,1778769041000,-604.05179956,8.901e-05,2]
[422254854,1778769041000,-1128.31947198,9.001e-05,2]
[422254864,1778769041000,-1889.18109961,9.201e-05,2]
[422254830,1778769041000,-300.0,8.227e-05,2]
[422254872,1778769041000,-793.0,9.3e-05,2]
[422254859,1778769041000,-322.68481388,9.118e-05,2]
[422254855,1778769041000,-1974.21550678,9.081e-05,2]
[422254849,1778769041000,-500.0,8.884e-05,2]
[422254841,1778769041000,-300.0,8.227e-05,2]
[422254819,1778769041000,-300.0,8.227e-05,2]
[422254839,1778769041000,-300.0,8.227e-05,2]
[422254868,1778769041000,-330.90437604,9.261e-05,2]
[422254800,1778769041000,-5000.0,7.151e-05,2]
[422254802,1778769041000,-1777.36723844,7.223e-05,2]
[422254804,1778769041000,-3117.76203223,7.296e-05,2]
[422254807,1778769041000,-365.73471496,7.333e-05,2]
[422254809,1778769041000,-300.0,7.443e-05,2]
[422254829,1778769041000,-300.0,8.227e-05,2]
[422254813,1778769041000,-152.0,7.859e-05,2]
[422254823,1778769041000,-300.0,8.227e-05,2]
[422254815,1778769041000,-420.0,8.187e-05,2]
[422254825,1778769041000,-300.0,8.227e-05,2]
[422254821,1778769041000,-300.0,8.227e-05,2]
[422254826,1778769041000,-300.0,8.227e-05,2]
[422254817,1778769041000,-300.0,8.227e-05,2]
[422254811,1778769041000,-300.0,7.443e-05,2]
[422254858,1778769041000,-1652.5871444,9.101e-05,2]
[422254929,1778769041000,-500.0,9.3e-05,2]
[422254862,1778769041000,-3956.07926724,9.181e-05,2]
[422254918,1778769041000,-500.0,9.3e-05,2]
[422254910,1778769041000,-500.0,9.3e-05,2]
[422254907,1778769041000,-500.0,9.3e-05,2]
[422254870,1778769041000,-5872.4845409,9.281e-05,2]
[422254915,1778769041000,-500.0,9.3e-05,2]
[422254928,1778769041000,-500.0,9.3e-05,2]
[422254920,1778769041000,-400.0,9.3e-05,2]
[422254912,1778769041000,-500.0,9.3e-05,2]
[422254914,1778769041000,-500.0,9.3e-05,2]
[422254932,1778769041000,-500.0,9.3e-05,2]
[422254934,1778769041000,-2176.85481682,9.301e-05,2]
[422254936,1778769041000,-151.0,9.301e-05,2]
[422254942,1778769041000,-11456.64851044,9.301e-05,2]
[422254938,1778769041000,-122126.86136601,9.301e-05,2]
[422254925,1778769041000,-500.0,9.3e-05,2]
[422254906,1778769041000,-500.0,9.3e-05,2]
[422254923,1778769041000,-500.0,9.3e-05,2]
[422254900,1778769041000,-500.0,9.3e-05,2]
[422254874,1778769041000,-500.0,9.3e-05,2]
[422254878,1778769041000,-500.0,9.3e-05,2]
[422254902,1778769041000,-645.32678371,9.3e-05,2]
[422254876,1778769041000,-245.7988726,9.3e-05,2]
[422254881,1778769041000,-500.0,9.3e-05,2]
[422254883,1778769041000,-500.0,9.3e-05,2]
[422254887,1778769041000,-500.0,9.3e-05,2]
[422254879,1778769041000,-500.0,9.3e-05,2]
[422254885,1778769041000,-500.0,9.3e-05,2]
[422254897,1778769041000,-500.0,9.3e-05,2]
[422254904,1778769041000,-634.71155464,9.3e-05,2]
[422254893,1778769041000,-500.0,9.3e-05,2]
[422254922,1778769041000,-500.0,9.3e-05,2]
[422254891,1778769041000,-500.0,9.3e-05,2]
[422254889,1778769041000,-500.0,9.3e-05,2]
[422254895,1778769041000,-500.0,9.3e-05,2]
[422255374,1778769046000,-2010.0,9.301e-05,2]
[422255372,1778769046000,-12513.43690985,9.301e-05,2]
[422255373,1778769046000,-9481.65197525,9.301e-05,2]
[422255497,1778770240000,-9946.59282868,9e-05,2]
[422255491,1778770240000,-270.062,8.918e-05,2]
[422255493,1778770240000,-300.0,8.924e-05,2]
[422255495,1778770240000,-500.0,8.925e-05,2]
[422255486,1778770240000,-371.04864244,7.49e-05,2]
[422255488,1778770240000,-456.3724832,8.701e-05,2]
[422255484,1778770240000,-5000.0,7.34e-05,2]
[422255489,1778770240000,-3641.5961773,8.827e-05,2]
[422255501,1778770240000,-5866.02785679,9e-05,2]
[422255513,1778770240000,-111047.89576625,9e-05,2]
[422255516,1778770240000,-396.37,9e-05,2]
[422255507,1778770240000,-889.25942238,9e-05,2]
[422255505,1778770240000,-1025.01718338,9e-05,2]
[422255509,1778770240000,-982.17671117,9e-05,2]
[422255499,1778770240000,-22867.37931453,9e-05,2]
[422255503,1778770240000,-439.74420657,9e-05,2]
[422255511,1778770240000,-153.76031848,9e-05,2]
[422255695,1778770246000,-152.0,8.145e-05,2]
[422255696,1778770246000,-3891.17442128,9e-05,2]
[422255721,1778770855000,-2526.97496362,7.22e-05,2]
[422255722,1778770872000,-5000.0,7.293e-05,2]
[422255725,1778770889000,-5000.0,7.367e-05,2]
[422255728,1778770907000,-363.62766959,7.471e-05,2]
[422255729,1778770925000,-1200.0,7.5e-05,2]
[422255731,1778770943000,-5737.74003285,7.501e-05,2]